[Event "Early-Titled-Tuesday-Blitz-April-16-2024"]
[Site "Chess.com"]
[Date "2024.04.16"]
[Round "3"]
[White "vovachesss"]
[Black "AnishOnYoutube"]
[Result "1/2-1/2"]
[WhiteElo "2771"]
[BlackElo "3047"]
[TimeControl "180+1"]
[EndTime "8:29:56 PDT"]
[Termination "Game drawn - insufficient material"]

1. e4 {[%clk 0:03:00.9]} 1... c5 {[%clk 0:02:59.8]} 2. c3 {[%clk 0:03:00.3]}
2... d5 {[%clk 0:02:58.4]} 3. exd5 {[%clk 0:03:01.2]} 3... Qxd5 {[%clk
0:02:58.9]} 4. d4 {[%clk 0:03:02.1]} 4... Nf6 {[%clk 0:02:59.4]} 5. Nf3 {[%clk
0:03:02.2]} 5... e6 {[%clk 0:02:59.9]} 6. Be3 {[%clk 0:03:01.1]} 6... Nc6 {[%clk
0:02:49.9]} 7. dxc5 {[%clk 0:02:56.6]} 7... Qxd1+ {[%clk 0:02:48.9]} 8. Kxd1
{[%clk 0:02:57.5]} 8... Ng4 {[%clk 0:02:37]} 9. b4 {[%clk 0:02:53.6]} 9... a5
{[%clk 0:02:25.5]} 10. Bb5 {[%clk 0:02:38.1]} 10... Bd7 {[%clk 0:02:11]} 11.
Bxc6 {[%clk 0:02:32.5]} 11... Bxc6 {[%clk 0:02:11.4]} 12. Kc2 {[%clk 0:02:13.8]}
12... Nxe3+ {[%clk 0:01:39.6]} 13. fxe3 {[%clk 0:02:14.7]} 13... g6 {[%clk
0:01:32.3]} 14. Rg1 {[%clk 0:02:04.2]} 14... axb4 {[%clk 0:01:06]} 15. cxb4
{[%clk 0:02:04]} 15... Bxf3 {[%clk 0:00:48.3]} 16. gxf3 {[%clk 0:02:04.9]} 16...
Bg7 {[%clk 0:00:49]} 17. Nc3 {[%clk 0:02:04.9]} 17... Ra3 {[%clk 0:00:49]} 18.
Nb5 {[%clk 0:02:04.9]} 18... Rxe3 {[%clk 0:00:49.1]} 19. Rad1 {[%clk 0:01:44.1]}
19... Ke7 {[%clk 0:00:47.6]} 20. Rd3 {[%clk 0:01:34.9]} 20... Re2+ {[%clk
0:00:46.4]} 21. Kb3 {[%clk 0:01:23.3]} 21... Rb2+ {[%clk 0:00:44.1]} 22. Kc4
{[%clk 0:01:23.8]} 22... Rxa2 {[%clk 0:00:31.7]} 23. Rgd1 {[%clk 0:01:07.2]}
23... Rc2+ {[%clk 0:00:31.9]} 24. Kb3 {[%clk 0:01:07.4]} 24... Rb2+ {[%clk
0:00:32.7]} 25. Kc4 {[%clk 0:01:08]} 25... Be5 {[%clk 0:00:28.4]} 26. Rd7+
{[%clk 0:01:05.3]} 26... Kf6 {[%clk 0:00:28.9]} 27. Rxb7 {[%clk 0:01:00.2]}
27... Rxh2 {[%clk 0:00:27.8]} 28. Nd6 {[%clk 0:00:55.6]} 28... Rc2+ {[%clk
0:00:25.7]} 29. Kb5 {[%clk 0:00:55.7]} 29... Bxd6 {[%clk 0:00:17.8]} 30. Rxd6
{[%clk 0:00:56.6]} 30... h5 {[%clk 0:00:18.3]} 31. c6 {[%clk 0:00:55.5]} 31...
h4 {[%clk 0:00:18.5]} 32. c7 {[%clk 0:00:55.5]} 32... h3 {[%clk 0:00:07.4]} 33.
Rb8 {[%clk 0:00:53]} 33... Rh5+ {[%clk 0:00:07.6]} 34. Kb6 {[%clk 0:00:50.7]}
34... h2 {[%clk 0:00:07.5]} 35. Rd1 {[%clk 0:00:49.3]} 35... h1=Q {[%clk
0:00:06.9]} 36. Rxh1 {[%clk 0:00:47.5]} 36... Rxh1 {[%clk 0:00:07.8]} 37. c8=Q
{[%clk 0:00:48.4]} 37... Rxc8 {[%clk 0:00:08.5]} 38. Rxc8 {[%clk 0:00:49.3]}
38... Rh3 {[%clk 0:00:05.5]} 39. Rc3 {[%clk 0:00:42.8]} 39... g5 {[%clk
0:00:05.8]} 40. b5 {[%clk 0:00:39.6]} 40... g4 {[%clk 0:00:06.1]} 41. Kc7 {[%clk
0:00:25]} 41... Rxf3 {[%clk 0:00:06]} 42. Rc1 {[%clk 0:00:19.2]} 42... g3 {[%clk
0:00:03.9]} 43. b6 {[%clk 0:00:19.3]} 43... Kg5 {[%clk 0:00:02.6]} 44. Rb1
{[%clk 0:00:18]} 44... g2 {[%clk 0:00:02.8]} 45. b7 {[%clk 0:00:17.2]} 45... Rf1
{[%clk 0:00:01.9]} 46. b8=Q {[%clk 0:00:17.5]} 46... g1=Q {[%clk 0:00:02.7]} 47.
Qg8+ {[%clk 0:00:17.4]} 47... Kf6 {[%clk 0:00:02.7]} 48. Qxg1 {[%clk 0:00:16.3]}
48... Rxg1 {[%clk 0:00:03.6]} 49. Rxg1 {[%clk 0:00:16.8]} 49... Ke5 {[%clk
0:00:04.5]} 50. Kc6 {[%clk 0:00:16.8]} 50... f5 {[%clk 0:00:04.2]} 51. Re1+
{[%clk 0:00:16.9]} 51... Kd4 {[%clk 0:00:04.6]} 52. Rxe6 {[%clk 0:00:16.6]}
52... f4 {[%clk 0:00:05.2]} 53. Rf6 {[%clk 0:00:15.9]} 53... Ke4 {[%clk
0:00:05]} 54. Kc5 {[%clk 0:00:15.9]} 54... f3 {[%clk 0:00:05.8]} 55. Kc4 {[%clk
0:00:16.5]} 55... Ke3 {[%clk 0:00:06.4]} 56. Re6+ {[%clk 0:00:16]} 56... Kd2
{[%clk 0:00:06.5]} 57. Rf6 {[%clk 0:00:12.8]} 57... Ke2 {[%clk 0:00:06.5]} 58.
Kc3 {[%clk 0:00:05.7]} 58... f2 {[%clk 0:00:07]} 59. Re6+ {[%clk 0:00:05.8]}
59... Kf3 {[%clk 0:00:07.4]} 60. Rf6+ {[%clk 0:00:04.6]} 60... Ke2 {[%clk
0:00:07.9]} 61. Re6+ {[%clk 0:00:03.7]} 61... Kf3 {[%clk 0:00:08.1]} 62. Kd2
{[%clk 0:00:03.7]} 62... f1=Q {[%clk 0:00:07.9]} 63. Rf6+ {[%clk 0:00:04.3]}
63... Kg2 {[%clk 0:00:08.8]} 64. Rxf1 {[%clk 0:00:05.1]} 64... Kxf1 {[%clk
0:00:09.7]} 1/2-1/2

[Event "Early-Titled-Tuesday-Blitz-April-16-2024"]
[Site "Chess.com"]
[Date "2024.04.16"]
[Round "3"]
[White "Grossboss19"]
[Black "AsselLesbekova"]
[Result "0-1"]
[WhiteElo "2583"]
[BlackElo "2404"]
[TimeControl "180+1"]
[EndTime "8:29:57 PDT"]
[Termination "AsselLesbekova won by checkmate"]

1. c4 {[%clk 0:03:00.9]} 1... e6 {[%clk 0:02:59.3]} 2. Nf3 {[%clk 0:02:59.9]}
2... d5 {[%clk 0:02:59.7]} 3. g3 {[%clk 0:03:00.5]} 3... a6 {[%clk 0:02:59.8]}
4. b3 {[%clk 0:02:58.5]} 4... Nf6 {[%clk 0:02:56]} 5. Bg2 {[%clk 0:02:57.5]}
5... c5 {[%clk 0:02:56.2]} 6. cxd5 {[%clk 0:02:56]} 6... Nxd5 {[%clk 0:02:54.4]}
7. O-O {[%clk 0:02:54.7]} 7... Be7 {[%clk 0:02:54.4]} 8. Bb2 {[%clk 0:02:54.5]}
8... Bf6 {[%clk 0:02:54.7]} 9. Bxf6 {[%clk 0:02:53.1]} 9... Qxf6 {[%clk
0:02:55]} 10. Na3 {[%clk 0:02:53]} 10... O-O {[%clk 0:02:49.6]} 11. Rc1 {[%clk
0:02:50.3]} 11... Qe7 {[%clk 0:02:43.6]} 12. Nc4 {[%clk 0:02:44.4]} 12... b5
{[%clk 0:02:38]} 13. Nce5 {[%clk 0:02:42.3]} 13... Bb7 {[%clk 0:02:22.3]} 14. d4
{[%clk 0:02:37.2]} 14... f6 {[%clk 0:02:08.4]} 15. Nd3 {[%clk 0:02:30]} 15...
cxd4 {[%clk 0:02:05.2]} 16. Nxd4 {[%clk 0:02:27.4]} 16... Nd7 {[%clk 0:02:01.4]}
17. Nc6 {[%clk 0:02:22]} 17... Bxc6 {[%clk 0:01:49.5]} 18. Rxc6 {[%clk
0:02:21.4]} 18... Rfc8 {[%clk 0:01:49.9]} 19. Qc1 {[%clk 0:01:57.6]} 19... N5b6
{[%clk 0:01:38.8]} 20. Nf4 {[%clk 0:01:47.9]} 20... Nf8 {[%clk 0:01:25.9]} 21.
Qe3 {[%clk 0:01:42]} 21... Rxc6 {[%clk 0:01:22.1]} 22. Bxc6 {[%clk 0:01:42.9]}
22... Rb8 {[%clk 0:01:22.6]} 23. Rd1 {[%clk 0:01:34.5]} 23... Qc7 {[%clk
0:01:09.2]} 24. Bf3 {[%clk 0:01:17.7]} 24... Qe5 {[%clk 0:01:09.4]} 25. Qxe5
{[%clk 0:01:14.5]} 25... fxe5 {[%clk 0:01:10.3]} 26. Nd3 {[%clk 0:01:15]} 26...
Nfd7 {[%clk 0:01:02.8]} 27. Rc1 {[%clk 0:01:13.5]} 27... Rc8 {[%clk 0:00:38.5]}
28. Rxc8+ {[%clk 0:01:12.1]} 28... Nxc8 {[%clk 0:00:39.4]} 29. Bc6 {[%clk
0:01:12.2]} 29... Ncb6 {[%clk 0:00:36.8]} 30. Bb7 {[%clk 0:01:10.9]} 30... a5
{[%clk 0:00:35.4]} 31. a3 {[%clk 0:01:05.5]} 31... a4 {[%clk 0:00:30.4]} 32. b4
{[%clk 0:00:59.1]} 32... Nc4 {[%clk 0:00:18.3]} 33. Bc6 {[%clk 0:00:58.8]} 33...
Ndb6 {[%clk 0:00:16.9]} 34. Bxb5 {[%clk 0:00:57.4]} 34... Nxa3 {[%clk
0:00:17.6]} 35. Nb2 {[%clk 0:00:50.7]} 35... Nxb5 {[%clk 0:00:17.2]} 36. Nd3
{[%clk 0:00:45.9]} 36... a3 {[%clk 0:00:16.6]} 37. Nc1 {[%clk 0:00:46.1]} 37...
Nc3 {[%clk 0:00:16.5]} 38. Kf1 {[%clk 0:00:46.2]} 38... a2 {[%clk 0:00:17.1]}
39. Nb3 {[%clk 0:00:46.6]} 39... Ncd5 {[%clk 0:00:13.5]} 40. b5 {[%clk
0:00:44.3]} 40... Nc3 {[%clk 0:00:13.9]} 41. Ke1 {[%clk 0:00:44.8]} 41... Nxb5
{[%clk 0:00:14.5]} 42. Kd2 {[%clk 0:00:44.8]} 42... Nd4 {[%clk 0:00:15]} 43. Na1
{[%clk 0:00:44.9]} 43... Kf7 {[%clk 0:00:14]} 44. e3 {[%clk 0:00:44.7]} 44...
Nf3+ {[%clk 0:00:13.9]} 45. Ke2 {[%clk 0:00:41.7]} 45... Nxh2 {[%clk 0:00:14.8]}
46. f3 {[%clk 0:00:40.8]} 46... e4 {[%clk 0:00:14]} 47. fxe4 {[%clk 0:00:41.2]}
47... Ng4 {[%clk 0:00:14.1]} 48. Kd3 {[%clk 0:00:40.7]} 48... Kf6 {[%clk
0:00:14.2]} 49. Kc3 {[%clk 0:00:39.8]} 49... Ke5 {[%clk 0:00:14.1]} 50. Kb3
{[%clk 0:00:40.7]} 50... Kxe4 {[%clk 0:00:14.7]} 51. Kxa2 {[%clk 0:00:41.3]}
51... Nxe3 {[%clk 0:00:13.8]} 52. Nc2 {[%clk 0:00:42.2]} 52... Nxc2 {[%clk
0:00:13.4]} 53. Kb3 {[%clk 0:00:42.9]} 53... Ne1 {[%clk 0:00:13.2]} 54. g4
{[%clk 0:00:42.9]} 54... Kf3 {[%clk 0:00:14.1]} 55. g5 {[%clk 0:00:43.8]} 55...
Kg4 {[%clk 0:00:14.3]} 56. Kc3 {[%clk 0:00:44.7]} 56... Kxg5 {[%clk 0:00:14.2]}
57. Kd4 {[%clk 0:00:45.6]} 57... Nf3+ {[%clk 0:00:14.3]} 58. Ke3 {[%clk
0:00:46.5]} 58... Kg4 {[%clk 0:00:14.9]} 59. Kf2 {[%clk 0:00:47.4]} 59... e5
{[%clk 0:00:14.6]} 60. Kg2 {[%clk 0:00:47.6]} 60... Ng5 {[%clk 0:00:14.6]} 61.
Kf2 {[%clk 0:00:48.5]} 61... h5 {[%clk 0:00:14.5]} 62. Ke3 {[%clk 0:00:49.4]}
62... h4 {[%clk 0:00:15]} 63. Kf2 {[%clk 0:00:50.3]} 63... h3 {[%clk 0:00:15.3]}
64. Kg1 {[%clk 0:00:50.5]} 64... e4 {[%clk 0:00:14.7]} 65. Kh2 {[%clk
0:00:51.4]} 65... e3 {[%clk 0:00:14.5]} 66. Kg1 {[%clk 0:00:52.3]} 66... e2
{[%clk 0:00:13.6]} 67. Kf2 {[%clk 0:00:52.5]} 67... h2 {[%clk 0:00:12.5]} 68.
Kxe2 {[%clk 0:00:51.7]} 68... h1=Q {[%clk 0:00:12.6]} 69. Kd3 {[%clk 0:00:52.6]}
69... Qf3+ {[%clk 0:00:12.8]} 70. Kd4 {[%clk 0:00:53.5]} 70... Nf7 {[%clk
0:00:13.4]} 71. Kc5 {[%clk 0:00:54.4]} 71... g5 {[%clk 0:00:14]} 72. Kb5 {[%clk
0:00:53.8]} 72... Kf4 {[%clk 0:00:14.9]} 73. Ka6 {[%clk 0:00:54]} 73... g4
{[%clk 0:00:15.8]} 74. Ka7 {[%clk 0:00:54.3]} 74... g3 {[%clk 0:00:16.7]} 75.
Kb8 {[%clk 0:00:51.9]} 75... g2 {[%clk 0:00:17.6]} 76. Kc7 {[%clk 0:00:52.2]}
76... g1=Q {[%clk 0:00:17.5]} 77. Kb8 {[%clk 0:00:52.5]} 77... Nd7+ {[%clk
0:00:13.5]} 78. Kc7 {[%clk 0:00:50.9]} 78... Qc3+ {[%clk 0:00:14]} 79. Kxd7
{[%clk 0:00:49.8]} 79... Qd1+ {[%clk 0:00:14.2]} 80. Ke7 {[%clk 0:00:48.8]}
80... Qe5+ {[%clk 0:00:14.3]} 81. Kf8 {[%clk 0:00:47.4]} 81... Qd8+ {[%clk
0:00:14.6]} 82. Kxf7 {[%clk 0:00:47.8]} 82... Qdf6+ {[%clk 0:00:15.1]} 83. Kg8
{[%clk 0:00:47.9]} 83... Qg7# {[%clk 0:00:15.7]} 0-1

[Event "Early-Titled-Tuesday-Blitz-April-16-2024"]
[Site "Chess.com"]
[Date "2024.04.16"]
[Round "3"]
[White "the_chess_child"]
[Black "nihalsarin"]
[Result "0-1"]
[WhiteElo "2817"]
[BlackElo "3174"]
[TimeControl "180+1"]
[EndTime "8:30:07 PDT"]
[Termination "nihalsarin won by resignation"]

1. e4 {[%clk 0:03:00.9]} 1... e5 {[%clk 0:02:59.8]} 2. Nf3 {[%clk 0:03:01.1]}
2... Nc6 {[%clk 0:02:59.8]} 3. d3 {[%clk 0:03:00.8]} 3... Nf6 {[%clk 0:02:59.1]}
4. g3 {[%clk 0:03:00.8]} 4... d5 {[%clk 0:02:57.9]} 5. exd5 {[%clk 0:03:01.7]}
5... Qxd5 {[%clk 0:02:32.8]} 6. Bg2 {[%clk 0:02:57.2]} 6... e4 {[%clk
0:02:31.1]} 7. Nfd2 {[%clk 0:02:43.3]} 7... Bg4 {[%clk 0:02:28.8]} 8. Nxe4
{[%clk 0:02:37.3]} 8... O-O-O {[%clk 0:01:52.7]} 9. f3 {[%clk 0:01:49.5]} 9...
Nxe4 {[%clk 0:01:44.2]} 10. fxe4 {[%clk 0:01:39.5]} 10... Qh5 {[%clk 0:01:24.7]}
11. Qd2 {[%clk 0:01:35.6]} 11... Nd4 {[%clk 0:01:25.1]} 12. h3 {[%clk
0:01:23.2]} 12... Nf3+ {[%clk 0:01:20.6]} 13. Bxf3 {[%clk 0:01:23.4]} 13... Bxf3
{[%clk 0:01:21.5]} 14. O-O {[%clk 0:01:23.7]} 14... Bxe4 {[%clk 0:00:51.2]} 15.
Kh2 {[%clk 0:01:13.7]} 15... f6 {[%clk 0:00:42.1]} 16. Nc3 {[%clk 0:00:46.9]}
16... Bc6 {[%clk 0:00:41.4]} 17. Qf2 {[%clk 0:00:45.9]} 17... Bd7 {[%clk
0:00:25.7]} 18. Qg2 {[%clk 0:00:35.6]} 18... Bc5 {[%clk 0:00:25.3]} 19. Bf4
{[%clk 0:00:34.7]} 19... Rhe8 {[%clk 0:00:25.2]} 20. Ne4 {[%clk 0:00:34.8]}
20... Bc6 {[%clk 0:00:24.6]} 21. g4 {[%clk 0:00:27.9]} 21... Qg6 {[%clk
0:00:24.7]} 22. Rae1 {[%clk 0:00:26.6]} 22... Bd4 {[%clk 0:00:17.9]} 23. c3
{[%clk 0:00:24]} 23... Bb6 {[%clk 0:00:18.1]} 24. Qf3 {[%clk 0:00:20.6]} 24...
f5 {[%clk 0:00:17.3]} 25. gxf5 {[%clk 0:00:20.2]} 25... Qxf5 {[%clk 0:00:18.2]}
26. Bg5 {[%clk 0:00:18.9]} 26... Bxe4 {[%clk 0:00:10.5]} 27. Qxf5+ {[%clk
0:00:14.9]} 27... Bxf5 {[%clk 0:00:11.4]} 28. Rxe8 {[%clk 0:00:15.8]} 28... Rxe8
{[%clk 0:00:10.6]} 29. Rxf5 {[%clk 0:00:16]} 29... Re2+ {[%clk 0:00:09.1]} 30.
Kg3 {[%clk 0:00:16.6]} 30... Rxb2 {[%clk 0:00:09.8]} 31. Rf8+ {[%clk 0:00:17]}
31... Kd7 {[%clk 0:00:10.2]} 32. Rf7+ {[%clk 0:00:17.9]} 32... Ke6 {[%clk
0:00:11]} 33. Rxg7 {[%clk 0:00:18.6]} 33... Rxa2 {[%clk 0:00:11.1]} 34. Rxh7
{[%clk 0:00:18.9]} 34... Rc2 {[%clk 0:00:10.8]} 35. c4 {[%clk 0:00:15.9]} 35...
Rc3 {[%clk 0:00:11]} 36. Rh6+ {[%clk 0:00:13]} 36... Kf5 {[%clk 0:00:11.1]} 37.
h4 {[%clk 0:00:10.7]} 37... Rxd3+ {[%clk 0:00:11.4]} 38. Kg2 {[%clk 0:00:11.2]}
38... a5 {[%clk 0:00:09.8]} 39. Rf6+ {[%clk 0:00:09.9]} 39... Kg4 {[%clk
0:00:10.4]} 40. Rf4+ {[%clk 0:00:10.6]} 40... Kh5 {[%clk 0:00:11.1]} 41. Be7
{[%clk 0:00:09.3]} 41... Rd4 {[%clk 0:00:08.5]} 42. Rf5+ {[%clk 0:00:08.5]}
42... Kg6 {[%clk 0:00:09.1]} 43. Rf6+ {[%clk 0:00:06.9]} 43... Kg7 {[%clk
0:00:08.3]} 44. h5 {[%clk 0:00:06.9]} 44... Rxc4 {[%clk 0:00:08.2]} 45. h6+
{[%clk 0:00:07.2]} 45... Kh7 {[%clk 0:00:08.9]} 46. Bf8 {[%clk 0:00:07.7]} 46...
Rg4+ {[%clk 0:00:08.6]} 47. Kh3 {[%clk 0:00:06.8]} 47... Rg8 {[%clk 0:00:07.5]}
48. Rf7+ {[%clk 0:00:06.7]} 48... Kg6 {[%clk 0:00:07.7]} 49. Rf3 {[%clk
0:00:06.1]} 49... a4 {[%clk 0:00:07.1]} 50. Bg7 {[%clk 0:00:06.2]} 50... Ra8
{[%clk 0:00:07.3]} 51. Rg3+ {[%clk 0:00:05.7]} 51... Kh7 {[%clk 0:00:08]} 52.
Kg4 {[%clk 0:00:06]} 52... a3 {[%clk 0:00:08.4]} 53. Kh5 {[%clk 0:00:05.8]}
53... Ra5+ {[%clk 0:00:08]} 54. Kh4 {[%clk 0:00:03.2]} 54... a2 {[%clk
0:00:08.7]} 55. Ba1 {[%clk 0:00:02.9]} 55... Kxh6 {[%clk 0:00:09]} 56. Rf3
{[%clk 0:00:02.5]} 56... Ra4+ {[%clk 0:00:07.6]} 57. Kh3 {[%clk 0:00:02.8]}
57... Bd4 {[%clk 0:00:08.2]} 58. Rf4 {[%clk 0:00:02.9]} 58... Ra3+ {[%clk
0:00:08.5]} 59. Kh4 {[%clk 0:00:01.6]} 59... Bxa1 {[%clk 0:00:08.7]} 0-1

[Event "Early-Titled-Tuesday-Blitz-April-16-2024"]
[Site "Chess.com"]
[Date "2024.04.16"]
[Round "3"]
[White "Knightmare1014"]
[Black "UNSTOPPABLE_LEGEND"]
[Result "0-1"]
[WhiteElo "2290"]
[BlackElo "2565"]
[TimeControl "180+1"]
[EndTime "8:30:16 PDT"]
[Termination "UNSTOPPABLE_LEGEND won by checkmate"]

1. e4 {[%clk 0:03:00.5]} 1... Nc6 {[%clk 0:02:54.2]} 2. Nf3 {[%clk 0:02:57.7]}
2... d6 {[%clk 0:02:53.8]} 3. d4 {[%clk 0:02:55.8]} 3... Nf6 {[%clk 0:02:54.3]}
4. Nc3 {[%clk 0:02:55.5]} 4... g6 {[%clk 0:02:53.7]} 5. Bc4 {[%clk 0:02:55.3]}
5... Bg7 {[%clk 0:02:53.2]} 6. O-O {[%clk 0:02:54]} 6... O-O {[%clk 0:02:53.7]}
7. a4 {[%clk 0:02:52.6]} 7... Nxe4 {[%clk 0:02:44.6]} 8. Nxe4 {[%clk 0:02:52.2]}
8... d5 {[%clk 0:02:44.7]} 9. Bxd5 {[%clk 0:02:08.9]} 9... Qxd5 {[%clk
0:02:45.6]} 10. Nc3 {[%clk 0:02:03.5]} 10... Qd8 {[%clk 0:02:29.4]} 11. Be3
{[%clk 0:02:00.5]} 11... Bf5 {[%clk 0:02:21.6]} 12. Ne2 {[%clk 0:01:56.5]} 12...
Bg4 {[%clk 0:02:11.8]} 13. Ng3 {[%clk 0:01:30.6]} 13... Qd5 {[%clk 0:01:32.3]}
14. c3 {[%clk 0:01:25.5]} 14... Rad8 {[%clk 0:01:27.4]} 15. h3 {[%clk
0:01:22.3]} 15... Bxf3 {[%clk 0:01:26.8]} 16. Qxf3 {[%clk 0:01:23.2]} 16... Qxf3
{[%clk 0:01:26.2]} 17. gxf3 {[%clk 0:01:24]} 17... a6 {[%clk 0:01:23.4]} 18. Ne4
{[%clk 0:01:18.7]} 18... e5 {[%clk 0:01:18.3]} 19. Nc5 {[%clk 0:00:59.9]} 19...
exd4 {[%clk 0:00:56]} 20. cxd4 {[%clk 0:00:59.8]} 20... Nxd4 {[%clk 0:00:45.2]}
21. Bxd4 {[%clk 0:00:55.8]} 21... Bxd4 {[%clk 0:00:37.9]} 22. Nxb7 {[%clk
0:00:55.9]} 22... Rb8 {[%clk 0:00:24.2]} 23. Rad1 {[%clk 0:00:50.2]} 23... Bb6
{[%clk 0:00:17.1]} 24. a5 {[%clk 0:00:47.3]} 24... Ba7 {[%clk 0:00:16.7]} 25.
Rd7 {[%clk 0:00:42.4]} 25... Rxb7 {[%clk 0:00:16.7]} 26. Kg2 {[%clk 0:00:39.5]}
26... Bb8 {[%clk 0:00:14.7]} 27. Rb1 {[%clk 0:00:37.7]} 27... Rb5 {[%clk
0:00:15]} 28. b4 {[%clk 0:00:37.3]} 28... c5 {[%clk 0:00:15.6]} 29. Rd5 {[%clk
0:00:36.1]} 29... Rxb4 {[%clk 0:00:14.5]} 30. Rc1 {[%clk 0:00:34.8]} 30... Rb5
{[%clk 0:00:14.5]} 31. Rcxc5 {[%clk 0:00:34.7]} 31... Rxc5 {[%clk 0:00:14.8]}
32. Rxc5 {[%clk 0:00:35.6]} 32... Rd8 {[%clk 0:00:14]} 33. Rc6 {[%clk
0:00:35.8]} 33... Kg7 {[%clk 0:00:13.7]} 34. Rxa6 {[%clk 0:00:35.8]} 34... Bc7
{[%clk 0:00:13.8]} 35. Ra7 {[%clk 0:00:35]} 35... Be5 {[%clk 0:00:14.3]} 36. a6
{[%clk 0:00:34.6]} 36... Rd2 {[%clk 0:00:14.7]} 37. Re7 {[%clk 0:00:31]} 37...
Bf6 {[%clk 0:00:13.6]} 38. Rb7 {[%clk 0:00:27.9]} 38... Ra2 {[%clk 0:00:14.1]}
39. a7 {[%clk 0:00:26.2]} 39... Bd4 {[%clk 0:00:12.8]} 40. Rd7 {[%clk
0:00:26.2]} 40... Bxa7 {[%clk 0:00:12.6]} 41. Kg3 {[%clk 0:00:25.4]} 41... Bxf2+
{[%clk 0:00:11.7]} 42. Kg4 {[%clk 0:00:25.7]} 42... h5+ {[%clk 0:00:11.9]} 43.
Kf4 {[%clk 0:00:25.1]} 43... Ra4+ {[%clk 0:00:12.5]} 44. Ke5 {[%clk 0:00:24.3]}
44... Bg3+ {[%clk 0:00:12.7]} 45. Kd5 {[%clk 0:00:24.6]} 45... Rf4 {[%clk
0:00:13.4]} 46. Kc5 {[%clk 0:00:22.9]} 46... Rxf3 {[%clk 0:00:13.5]} 47. Re7
{[%clk 0:00:23.4]} 47... Rf5+ {[%clk 0:00:14.4]} 48. Kd4 {[%clk 0:00:22.8]}
48... Bh4 {[%clk 0:00:15.3]} 49. Rd7 {[%clk 0:00:22.2]} 49... Bf6+ {[%clk
0:00:16.2]} 50. Ke3 {[%clk 0:00:21.4]} 50... Re5+ {[%clk 0:00:16.7]} 51. Kf3
{[%clk 0:00:21.5]} 51... Re6 {[%clk 0:00:17.6]} 52. Rb7 {[%clk 0:00:20.9]} 52...
g5 {[%clk 0:00:18.5]} 53. Rc7 {[%clk 0:00:20.1]} 53... Kg6 {[%clk 0:00:19.4]}
54. Kg3 {[%clk 0:00:20]} 54... Bg7 {[%clk 0:00:20]} 55. Rb7 {[%clk 0:00:20.2]}
55... f5 {[%clk 0:00:20.9]} 56. Ra7 {[%clk 0:00:20.2]} 56... g4 {[%clk
0:00:21.5]} 57. hxg4 {[%clk 0:00:20.1]} 57... hxg4 {[%clk 0:00:22.4]} 58. Kh4
{[%clk 0:00:18.9]} 58... Bf6+ {[%clk 0:00:16.8]} 59. Kg3 {[%clk 0:00:19.1]}
59... Re3+ {[%clk 0:00:17.5]} 60. Kg2 {[%clk 0:00:18.5]} 60... f4 {[%clk
0:00:17.7]} 61. Ra4 {[%clk 0:00:18.4]} 61... Kf5 {[%clk 0:00:17.1]} 62. Ra5+
{[%clk 0:00:17.4]} 62... Be5 {[%clk 0:00:17.6]} 63. Kf2 {[%clk 0:00:17.4]} 63...
Rc3 {[%clk 0:00:16.9]} 64. Ra2 {[%clk 0:00:16.8]} 64... Bd4+ {[%clk 0:00:16.8]}
65. Kg2 {[%clk 0:00:16.5]} 65... Rg3+ {[%clk 0:00:17.4]} 66. Kh2 {[%clk
0:00:16.3]} 66... Rh3+ {[%clk 0:00:17.5]} 67. Kg2 {[%clk 0:00:16.5]} 67... f3+
{[%clk 0:00:18.1]} 68. Kf1 {[%clk 0:00:16.2]} 68... Rh1# {[%clk 0:00:19]} 0-1